Cogmind - Beta 11.1 @@@ ROGUE MODE // 2022.05.08 @ 22:52:32 Player: Zeldest Result: Self-destructed Performance ------------- Evolutions (4) 2000 Regions Visited (7) 1400 Robots Destroyed (2) 10 Value Destroyed (42) 42 Prototype IDs (1) 20 Alien Tech Used (0) 0 Bonus (1425) 1425 TOTAL SCORE: 4897 Bonus ------- Pacifist 1125 Aligned with FarCom 300 Cogmind --------- Core Integrity 566/850 Matter 270/300 Energy 100/100 System Corruption 3% Temperature Cool (0) Movement Core (1500) Ox29 Location -6/Factory Parts ------- > --- POWER (3) -------- Fusion Compressor > --- PROPULSION (3) --- (None) > --- UTILITY (7) ------ Huge Storage Unit Improved Trap Scanner Advanced Visual Processing Unit Improved Signal Interpreter Modified TNC ECM Suite > --- WEAPON (2) ------- (None) > --- INVENTORY (25) --- Deuterium Engine Light Nuclear Core Light Nuclear Core Light Nuclear Core Compact Wheel Power Amplifier Force Field Peak State ------------ > --- POWER ------------ Light Nuclear Core Improved Deuterium Engine Fusion Compressor > --- PROPULSION ------- Compact Wheel Armored Huge Wheel > --- UTILITY ---------- Huge Storage Unit Advanced Weight Redist. System Improved Trap Scanner Advanced Visual Processing Unit Improved Signal Interpreter Modified TNC ECM Suite > --- WEAPON ----------- Plasma Cutter Maul > --- INVENTORY -------- Deuterium Engine Light Nuclear Core Light Nuclear Core Light Nuclear Core Compact Wheel Power Amplifier Force Field [Rating: 49] Favorites ----------- Power Improved Deuterium Engine Engine Improved Deuterium Engine Power Core Light Nuclear Core Propulsion Compact Wheel Wheel Compact Wheel Utility ECM Suite Device ECM Suite Storage Huge Storage Unit Processor Modified TNC Protection Hardened Light Armor Plating Weapon Plasma Cutter Energy Gun EM Pulse Gun Special Weapon Plasma Cutter Impact Weapon Maul Build | -11 -10 -10 -10 -9 -8 -7 -6 ------- Run | Scr Mat Min Exi Min Mat Fac Fac Slots Evolved 8 | . . . . . 4 2 2 Power 2 | . . . . . 1 1 . Propulsion 1 | . . . . . 1 . . Utility 5 | . . . . . 2 1 2 Weapon . | . . . . . . . . Parts Attached 31 | 5 2 . 2 . 10 7 5 Power 9 | 1 . . 1 . 3 3 1 Engine 6 | 1 . . 1 . 3 1 . Core 3 | . . . . . . 2 1 Reactor . | . . . . . . . . Propulsion 6 | 2 . . . . 3 1 . Treads . | . . . . . . . . Leg . | . . . . . . . . Wheel 6 | 2 . . . . 3 1 . Hover . | . . . . . . . . Flight . | . . . . . . . . Utility 13 | 1 2 . 1 . 3 3 3 Device 6 | . 1 . . . 2 . 3 Storage 3 | 1 1 . . . . 1 . Processor 3 | . . . 1 . . 2 . Hackware . | . . . . . . . . Protection 1 | . . . . . 1 . . Artifact . | . . . . . . . . Weapon 3 | 1 . . . . 1 . 1 Energy Gun 1 | 1 . . . . . . . Energy Cannon . | . . . . . . . . Ballistic Gun . | . . . . . . . . Ballistic Cannon . | . . . . . . . . Launcher . | . . . . . . . . Special Weapon 1 | . . . . . 1 . . Impact Weapon 1 | . . . . . . . 1 Slashing Weapon . | . . . . . . . . Piercing Weapon . | . . . . . . . . Special Melee Weapon . | . . . . . . . . Unidentified Prototypes 1 | . . . 1 . . . . Parts Lost 8 | . . 1 . . . . 7 Power 2 | . . . . . . . 2 Propulsion 2 | . . . . . . . 2 Utility 1 | . . . . . . . 1 Weapon 3 | . . 1 . . . . 2 Highest Loss Streak 7 | . . 1 . . . . 7 To Critical Strikes . | . . . . . . . . Average Slot Usage (%) 81 | . 83 78 71 58 71 89 86 Engine 12 | . 14 14 14 10 13 18 5 Core 5 | . . . . . . 3 12 Wheel 20 | . 28 28 28 21 24 20 12 Device 15 | . 12 14 10 . 16 14 19 Storage 5 | . 14 14 14 10 . . 6 Processor 14 | . . . 3 14 9 21 20 Protection 1 | . . . . . 7 1 . Special Weapon 3 | . . . . . . 7 5 Naked Turns . | . . . . . . . . Heaviest Build 109 | 12 29 29 27 25 28 103 109 Greatest Support 57 | 20 20 20 20 20 48 57 53 Greatest Overweight (x) 3 | 3 1 1 1 1 2 2 2 Average Overweight (x) . | 1 . 1 1 . . . 1 Largest Inventory Capacity 25 | 8 15 15 15 15 5 25 25 Average Capacity 14 | 7 13 15 15 13 5 5 25 Most Carried 11 | 3 5 5 11 6 5 6 7 Average Carried 3 | . 2 5 5 4 2 2 5 Final Capacity 25 | 8 15 15 15 5 5 25 25 Final Carried 7 | . 5 5 4 5 3 6 7 Class Distribution -------------------- 89% | Mutant 6% | Assassin 4% | Generator-Assassin Dominant Class ---------------- Mutant | -10/Materials Mutant | -10/Mines Mutant | -10/Exiles Mutant | -9/Mines Mutant | -8/Materials Mutant | -7/Factory Mutant | -6/Factory Resources | -11 -10 -10 -10 -9 -8 -7 -6 ----------- Run | Scr Mat Min Exi Min Mat Fac Fac Matter Collected 567 | 218 . . . . . . 349 Remotely . | . . . . . . . . Salvage Created 126 | . . . . . . . 126 Parts 6 | . . . . . . . 6 Haulers Intercepted 1 | . . . . . . . 1 Recyclers Shooed . | . . . . . . . . Parts Field Recycled . | . . . . . . . . Retrieved Matter . | . . . . . . . . Parts Self-Destructed . | . . . . . . . . Prevented . | . . . . . . . . Kills | -11 -10 -10 -10 -9 -8 -7 -6 ------- Run | Scr Mat Min Exi Min Mat Fac Fac Combat Hostiles Destroyed 1 | . . . . . . . 1 Cannons 1 | . . . . . . . 1 Classes Destroyed 2 | . . . . . . . 2 Hauler 1 | . . . . . . . 1 Swarmer 1 | . . . . . . . 1 Best Kill Streak 2 | . . . . . . . 2 Combat Bots Only 1 | . . . . . . . 1 Max Kills in Single Turn 1 | . . . . . . . 1 Gunslinging . | . . . . . . . . Exploded . | . . . . . . . . Melee . | . . . . . . . . Uniques/NPCs Destroyed . | . . . . . . . . Combat | -11 -10 -10 -10 -9 -8 -7 -6 -------- Run | Scr Mat Min Exi Min Mat Fac Fac Damage Taken 1386 | 2 141 117 . 43 . . 1083 Core 440 | 2 87 29 . 38 . . 284 Absorbed by Shields . | . . . . . . . . Core Remaining (%) 84 | 99 . . . 37 100 100 . Volleys Fired 16 | . . . . . . 1 15 Largest 1 | . . . . . . 1 1 Hottest 20 | . . . . . . 20 20 Shots Fired 16 | . . . . . . 1 15 Gun . | . . . . . . . . Cannon . | . . . . . . . . Launcher . | . . . . . . . . Special 16 | . . . . . . 1 15 Kinetic . | . . . . . . . . Thermal 16 | . . . . . . 1 15 Explosive . | . . . . . . . . Electromagnetic . | . . . . . . . . Robot Hit Streak 1 | . . . . . . . 1 Robot Miss Streak 3 | . . . . . . 1 3 Penetration Max . | . . . . . . . . Secondary Targets . | . . . . . . . . Shots Hit Robots 11 | . . . . . . . 11 Core Hits 4 | . . . . 1 . . 3 Critical Kills . | . . . . . . . . Critical Parts Destroyed 2 | . . . . . . . 2 Critical Strikes 2 | . . . . . . . 2 Smash 2 | . . . . . . . 2 Melee Attacks 16 | . . . . . . . 16 Impact 16 | . . . . . . . 16 Slashing . | . . . . . . . . Piercing . | . . . . . . . . Sneak Attacks 1 | . . . . . . . 1 Combat Hostiles . | . . . . . . . . Follow-up Attacks . | . . . . . . . . Damage Inflicted 531 | 4 . . . 21 . . 506 Guns . | . . . . . . . . Cannons . | . . . . . . . . Explosions . | . . . . . . . . Melee 460 | . . . . . . . 460 Ramming 48 | 4 . . . 21 . . 23 Kinetic . | . . . . . . . . Thermal 23 | . . . . . . . 23 Explosive . | . . . . . . . . Electromagnetic . | . . . . . . . . Impact 460 | . . . . . . . 460 Slashing . | . . . . . . . . Piercing . | . . . . . . . . Highest Corruption 3 | . . . . . . . 3 Average Corruption 1 | . . . . . . . 1 Corruption Purged . | . . . . . . . . Corruption Blocked . | . . . . . . . . Overload Shots . | . . . . . . . . Overflow Damage 182 | . . . . . . . 182 Projectiles . | . . . . . . . . Explosions . | . . . . . . . . Melee 182 | . . . . . . . 182 Knockbacks 4 | . . . . . . . 4 Impact 4 | . . . . . . . 4 Kinetic . | . . . . . . . . Secondary . | . . . . . . . . Self-Inflicted Damage 22 | 2 . . . 9 . . 11 Shots . | . . . . . . . . Rammed 8 | 1 . . . 5 . . 2 Targets Rammed 8 | 1 . . . 5 . . 2 Kicked . | . . . . . . . . Crushed . | . . . . . . . . Highest Temperature . | . . . . . . . . Average Temperature . | . . . . . . . . Received Heat Transfer 78 | . 78 . . . . . . Siege Activations . | . . . . . . . . Robots Corrupted . | . . . . . . . . Combat Hostiles . | . . . . . . . . Parts Fried . | . . . . . . . . Impact Corruptions 5 | . . . . . . . 5 Robots Melted . | . . . . . . . . Combat Hostiles . | . . . . . . . . Parts Melted . | . . . . . . . . Heat Transferred 74 | . . . . . . . 74 Parts Sabotaged . | . . . . . . . . Parts Stolen . | . . . . . . . . Parts Stripped . | . . . . . . . . Power Chain Reactions . | . . . . . . . . Missiles Intercepted . | . . . . . . . . Alert | -11 -10 -10 -10 -9 -8 -7 -6 ------- Run | Scr Mat Min Exi Min Mat Fac Fac Peak Influence 117 | . 90 84 . 15 5 17 117 Initial 34 | . . 34 . . 5 2 . Average 13 | . 27 60 . 1 5 2 26 Maximum Alert Level . | . . . . . . . . Low Security (%) 100 | 100 100 100 . 100 100 100 100 Level 1 . | . . . . . . . . Level 2 . | . . . . . . . . Level 3 . | . . . . . . . . Level 4 . | . . . . . . . . Level 5 . | . . . . . . . . High Security . | . . . . . . . . Max Security . | . . . . . . . . Squads Dispatched 2 | . 1 . . . . . 1 Investigation . | . . . . . . . . Extermination 1 | . . . . . . . 1 Reinforcement 1 | . 1 . . . . . . Assault . | . . . . . . . . Garrison . | . . . . . . . . Intercept . | . . . . . . . . Searches Triggered . | . . . . . . . . Construction Impeded . | . . . . . . . . Haulers Reinforced . | . . . . . . . . Active Scanning Responses . | . . . . . . . . Cargo Convoy Interrupts . | . . . . . . . . Stealth | -11 -10 -10 -10 -9 -8 -7 -6 --------- Run | Scr Mat Min Exi Min Mat Fac Fac Distress Signals . | . . . . . . . . Communications Jammed . | . . . . . . . . Distress Signals . | . . . . . . . . Times Spotted 33 | . 7 6 . 3 1 1 15 Peak Tracking Total 6 | . 6 3 . 5 1 1 5 Tactical Retreats 6 | . 2 1 . . . . 3 Traps | -11 -10 -10 -10 -9 -8 -7 -6 ------- Run | Scr Mat Min Exi Min Mat Fac Fac Traps Triggered 1 | . . . . . . . 1 Indirectly . | . . . . . . . . Trap Hack Attempts . | . . . . . . . . Triggered . | . . . . . . . . Disarmed . | . . . . . . . . Reprogrammed . | . . . . . . . . Reused . | . . . . . . . . Traps Extracted . | . . . . . . . . Installed . | . . . . . . . . Triggered . | . . . . . . . . Machines | -11 -10 -10 -10 -9 -8 -7 -6 ---------- Run | Scr Mat Min Exi Min Mat Fac Fac Machines Disabled . | . . . . . . . . Max in Single Turn . | . . . . . . . . Machines Sabotaged . | . . . . . . . . Garrisons Compromised . | . . . . . . . . Overloaded Fab Kills . | . . . . . . . . Hacking | -11 -10 -10 -10 -9 -8 -7 -6 --------- Run | Scr Mat Min Exi Min Mat Fac Fac Machines Accessed 10 | . . . 4 . 3 3 . Terminals 5 | . . . . . 3 2 . Fabricators . | . . . . . . . . Repair Stations . | . . . . . . . . Recycling Units . | . . . . . . . . Scanalyzers 1 | . . . . . . 1 . Garrison Access . | . . . . . . . . Total Hacks 57 | . . . 49 . 3 5 . Successful 55 | . . . 49 . 3 3 . Failed 2 | . . . . . . 2 . Catastrophic . | . . . . . . . . Database Lockouts . | . . . . . . . . Manual 5 | . . . 5 . . . . Terminals 6 | . . . . . 3 3 . Fabricators . | . . . . . . . . Repair Stations . | . . . . . . . . Recycling Units . | . . . . . . . . Scanalyzers 2 | . . . . . . 2 . Garrison Access . | . . . . . . . . Terminal Hacks 53 | . . . 49 . 3 1 . Record 50 | . . . 49 . 1 . . Open DSF 1 | . . . . . . 1 . Alert Level 1 | . . . . . 1 . . Locate Traps 1 | . . . . . 1 . . Fabricator Hacks . | . . . . . . . . Repair Station Hacks . | . . . . . . . . Recycling Unit Hacks . | . . . . . . . . Scanalyzer 2 | . . . . . . 2 . Insert Component 1 | . . . . . . 1 . Analyze 1 | . . . . . . 1 . Garrison Access Hacks . | . . . . . . . . Unauthorized Hacks . | . . . . . . . . Terminals . | . . . . . . . . Fabricators . | . . . . . . . . Repair Stations . | . . . . . . . . Recycling Units . | . . . . . . . . Scanalyzers . | . . . . . . . . Garrison Access . | . . . . . . . . Data Cores Recovered . | . . . . . . . . Used . | . . . . . . . . Hacking Detections 5 | . . . . . 2 3 . Full Trace Events . | . . . . . . . . Feedback Events . | . . . . . . . . Feedback Blocked . | . . . . . . . . Robot Schematics Acquired . | . . . . . . . . Robots Built . | . . . . . . . . Authchips . | . . . . . . . . Time . | . . . . . . . . Total Robot Build Rating . | . . . . . . . . Part Schematics Acquired 1 | . . . . . . 1 . Parts Built . | . . . . . . . . Authchips . | . . . . . . . . Time . | . . . . . . . . Total Part Build Rating . | . . . . . . . . Parts Repaired . | . . . . . . . . Time . | . . . . . . . . Parts Recycled . | . . . . . . . . Recycled Matter . | . . . . . . . . Retrieved Matter . | . . . . . . . . Retrieved Components . | . . . . . . . . Parts Scanalyzed 1 | . . . . . . 1 . Part Schematics Acquired 1 | . . . . . . 1 . Parts Damaged 1 | . . . . . . 1 . Bothacking | -11 -10 -10 -10 -9 -8 -7 -6 ------------ Run | Scr Mat Min Exi Min Mat Fac Fac Used RIF Installer . | . . . . . . . . Robots Hacked . | . . . . . . . . Non-combat . | . . . . . . . . Combat . | . . . . . . . . Robot Hacks Applied . | . . . . . . . . Relay Couplers Released . | . . . . . . . . Fabnet Peak Effective % . | . . . . . . . . Robots Rewired . | . . . . . . . . Allies Hacked . | . . . . . . . . Hacks Repelled . | . . . . . . . . Allies | -11 -10 -10 -10 -9 -8 -7 -6 -------- Run | Scr Mat Min Exi Min Mat Fac Fac Total Allies . | . . . . . . . . Largest Group . | . . . . . . . . Highest-Rated Group . | . . . . . . . . Highest-Rated Ally . | . . . . . . . . Total Orders . | . . . . . . . . Ally Attacks . | . . . . . . . . Total Damage . | . . . . . . . . Kills . | . . . . . . . . Allies Corrupted . | . . . . . . . . Allies Melted . | . . . . . . . . Intel | -11 -10 -10 -10 -9 -8 -7 -6 ------- Run | Scr Mat Min Exi Min Mat Fac Fac Robot Analysis Total . | . . . . . . . . Derelict Logs Recovered 1 | . . . . 1 . . . Drone Launches . | . . . . . . . . Drone Recoveries . | . . . . . . . . Exploration | -11 -10 -10 -10 -9 -8 -7 -6 ------------- Run | Scr Mat Min Exi Min Mat Fac Fac Turns Passed 2585 | 104 117 25 463 94 331 640 811 Spaces Moved 2219 | 67 119 27 480 80 302 608 536 Core 86 | 51 . . . 21 14 . . Treads . | . . . . . . . . Legs . | . . . . . . . . Wheels 2133 | 16 119 27 480 59 288 608 536 Hover . | . . . . . . . . Flight . | . . . . . . . . Fastest Speed 50 | 50 80 95 95 50 100 100 115 Average Speed 104 | 140 91 95 95 83 102 100 118 Slowest Speed 200 | 200 95 95 95 95 150 130 130 Overloaded Moves . | . . . . . . . . Propulsion Burnouts . | . . . . . . . . Robots Hopped . | . . . . . . . . Cave-ins Triggered . | . . . . . . . . Exploration Rate (%) 26 | 5 32 9 71 18 31 24 18 Regions Visited 7 Branch Regions 3 Pre-discovered Areas 1 | . . . 1 . . . . Known Exits Taken 1 | . . . . . . 1 . Unknown Exits Taken 6 | 1 1 1 1 1 1 . . Scrap Searched . | . . . . . . . . Spaces Dug . | . . . . . . . . Terrain Destroyed . | . . . . . . . . Melee . | . . . . . . . . Projectile . | . . . . . . . . AOE . | . . . . . . . . Terrain Rammed . | . . . . . . . . Walls Destroyed . | . . . . . . . . Machines Disabled . | . . . . . . . . Actions | -11 -10 -10 -10 -9 -8 -7 -6 --------- Run | Scr Mat Min Exi Min Mat Fac Fac Total 2436 | 77 126 26 489 108 324 639 647 Wait 87 | . . . . 20 . . 67 Move 2213 | 67 118 26 479 79 301 607 536 Hop . | . . . . . . . . Pick Up 42 | 5 6 . 3 . 10 13 5 Fast Attach . | . . . . . . . . Attach 28 | 5 1 . 2 . 9 7 4 Detach 6 | . . . 1 3 . 2 . Swap 3 | . 1 . . . 1 . 1 Drop 18 | . . . 4 1 3 9 1 Fire 16 | . . . . . . 1 15 Melee 16 | . . . . . . . 16 Ram 7 | . . . . 5 . . 2 Kick . | . . . . . . . . Crush . | . . . . . . . . Escape Stasis . | . . . . . . . . Rewire . | . . . . . . . . Trap . | . . . . . . . . Miscellaneous . | . . . . . . . . Route ------- -11/Scrapyard -10/Materials -10/Mines -10/Exiles (discovered 2 exits: [*Min x2]) -9/Mines -8/Materials -7/Factory -6/Factory History --------- Turn | Location | Event 5 | -11/Scrapyard | Discovered new exit (range 16) 105 | -11/Scrapyard | Entered Materials 201 | -10/Materials | Discovered new exit (range 16) 222 | -10/Materials | Entered Mines 234 | -10/Mines | Deemed a non-threat by the Exiles lab entrance 234 | -10/Mines | Discovered new exit (range 5) 247 | -10/Mines | Entered Exiles 269 | -10/Exiles | Discovered new exit (range 15) 278 | -10/Exiles | Met 8R-AWN 296 | -10/Exiles | Met EX-HEX 309 | -10/Exiles | Build established: Mutant 341 | -10/Exiles | Met EX-DEC 358 | -10/Exiles | Learned location of Zion (-6) 403 | -10/Exiles | Discovered new exit (range 14) 462 | -10/Exiles | Met EX-BIN 477 | -10/Exiles | Aligned with FarCom system 478 | -10/Exiles | Given EX-Vault access code 574 | -10/Exiles | Opened EX-Vault 593 | -10/Exiles | Found Prototype Device 600 | -10/Exiles | Found Prototype Processor 601 | -10/Exiles | Identified Modified TNC 624 | -10/Exiles | Warned to stay clear of 0b10 Research branches 710 | -10/Exiles | Left Exiles lab with Modified TNC 710 | -10/Exiles | Entered Mines 720 | -9/Mines | Learned Materials interactive machine intel 798 | -9/Mines | Discovered new exit (range 11) 803 | -9/Mines | Core integrity fell below 50% 804 | -9/Mines | Entered Materials 804 | -8/Materials | Evolved 4 slots: Power x1, Propulsion x1, Utility x2 805 | -8/Materials | Loaded intel: 19 interactive machine locations 1097 | -8/Materials | Discovered new exit (range 16) 1135 | -8/Materials | Entered Factory 1135 | -7/Factory | Evolved 2 slots: Power x1, Utility x1 1487 | -7/Factory | Identified exit to DSF 1700 | -7/Factory | Discovered new exit (range 8) 1744 | -7/Factory | Identified exit to Factory 1775 | -7/Factory | Entered another Factory area 1775 | -6/Factory | Evolved 2 slots: Utility x2 2586 | -6/Factory | Self-destructed Last Messages --------------- 02567_ S-27 Virus system corrupted by crushing effect. 02569_ Assembly Bed disabled. 02569_ S-27 Virus misfires. 02570_ P-60 Hacker suffers critical hit (Smash). 02570_ Destroyed Mic. Nuclear Core. 02570_ P-60 Hacker system corrupted by crushing effect. 02570_ P-60 Hacker knocked back. 02570_ P-60 Hacker resets S-27 Virus, system corruption cleaned. 02573_ P-60 Hacker resets P-60 Hacker, system corruption cleaned. 02575_ Adv. Weight Redist. System destroyed. 02576_ Destroyed Shock Rifle. 02576_ P-60 Hacker system corrupted by crushing effect. 02579_ Destroyed Imp. Heat Sink. 02579_ P-60 Hacker system corrupted by crushing effect. 02579_ P-60 Hacker resets P-60 Hacker, system corruption cleaned. 02582_ Maul destroyed. 02585_ Slammed into P-60 Hacker. 02585_ Destabilizing: System interference. 02585_ Imp. Trap Scanner temporarily disabled. 02585_ Arm. Huge Wheel destroyed. Map ----- +----------------------------------------------------+ | ????????????????????????????# #??# """ """ #? | | ????????????????????????????# #??# """ """ #? | | ???????????????????????????## ##?# #? | | ???????????????????????????# #?# """ """ #? | | ?????????????????????""" ## = ###!* """ """ #? | | ?????????????????# + T /!* """ """ #? | | ?????????????????????""" ## ###=[ #? | | ??????????##???????????????# #?# #? | | ?????????? ?????????????### ###?##############? | | ??????????? A????????????# #?????????????????? | | ????????????"" ############# #?????????????????? | | ???????????""" #?????????????????? | | ???????????""" #?????????????????? | | ????????? """ #?????????????????? | | ??????? #?????????????????? | | ??????? ! #????"????????????? | | ???????????##+############ u#???""????????????? | | ?????????????????????????# #?? ""????????????? | | ?????????????????????????# #? ??????????????? | | ?????????????????????????# t # ???????????????? | | ??????????????????######## + ????????????????? | | ??????????????????# # #?????????????????? | | ??????????????????# # #?????????????????? | | ??????????????????# # #?????????????????? | | ??????????????????# s#p k #?????????????????? | | ??????????????????# """ @ #?????????????????? | | ??????????????????# """"p#k #?????????????????? | | ??????????????????# """" s #?????????????????? | | ??????????????????# """" # #?????????????????? | | ??????????????????# """" # #?????????????????? | | ??????????????????# """" # #####?????????????????? | | ??????????????????# # #?????????????????????? | | ??????????????????# * # #?????????????????????? | | ??????????????????# # #?????????????????????? | | ??????????????????# # #?????????????????????? | | ??????????????????######## ??????????????????????? | | ?????????????????????????# ??????????????????????? | | ?????????????????????????# ??????????????????????? | | ?????????????????????????? ??????????????????????? | | ?????????????????????????? ??????????????????????? | | ??????????????????????????!??????????????????????? | | ?????????????????????????? ??????????????????????? | | ?????????????????????????? ??????????????????????? | | ?????????????????????????? ??????????????????????? | | ?????????????????????????????????????????????????? | | ?????????????????????????????????????????????????? | | ?????????????????????????????????????????????????? | | ?????????????????????????????????????????????????? | | ?????????????????????????????????????????????????? | | ?????????????????????????????????????????????????? | +----------------------------------------------------+ Best States ------------- Heat Dissipation 37 Energy Generation 45 Energy Capacity 670 Matter Stores 295 Matter Capacity 300 Sight Range 20 Terrain Scan Density 10 ECM Strength 1 Additional Mass Support 9 Armor Coverage 150 Evasion (%) 50 Item Schematics ----------------- Imp. Signal Interpreter | -7/Factory | Scanalyzed Robot Schematics ------------------ None Fabricated ------------ Nothing Alien Tech Used ----------------- None Achievements -------------- None Challenges ------------ None Game ------ Seed GrenadeSurveybotRigger Manual? 0 Play Time 00:36:52 Cumulative 18.6 hours Start 2022.05.08 @ 14:10:13 End 2022.05.08 @ 22:52:32 Sessions 3 Manual Loads 0 Difficulty Rogue Special Mode None Game No. 40 Rogue 40 Adventurer 0 Explorer 0 Win Type - Total 0 Types 0/0/0/0/0/0/0/0/0 Lore% 19 Gallery% 22 Achievement% 17 Wizard Run 0 Options --------- ASCII 0 Keyboard 1 Movement Numpad Keybinds 0 Fullscreen 1 Font 18/SmallcapsGlow Map View 76x50 Tactical HUD 1 Map Filters NONE Filters NONE Steam 1 RUN: 676b0940-5581-469b-ad34-a1f1bcdec936